[Event "Titled Tuesday Blitz March 01 Late 2022"]
[White "Dubov, Daniil"]
[Black "Jobava, Baadur"]
[WhiteFideId "24126055"]
[BlackFideId "13601520"]
[WhiteElo "2791"]
[BlackElo "2617"]
[Result "1-0"]
[Round "10"]
[TimeControl "180+1"]
[Date "2022.03.01"]
[WhiteClock "0:00:20"]
[BlackClock "0:00:06"]

1. e4 {[%clk 0:03:00]}  c6 {[%clk 0:02:58]} 2. d4 {[%clk 0:03:00]}  d5 {[%clk 0:02:59]} 3. e5 {[%clk 0:03:00]}  Bf5 {[%clk 0:02:58]} 4. Nf3 {[%clk 0:03:01]}  e6 {[%clk 0:02:59]} 5. Be2 {[%clk 0:03:01]}  h6 {[%clk 0:02:59]} 6. O-O {[%clk 0:03:00]}  Ne7 {[%clk 0:03:00]} 7. c4 {[%clk 0:03:00]}  Bh7 {[%clk 0:02:58]} 8. Nc3 {[%clk 0:03:00]}  Nf5 {[%clk 0:02:56]} 9. Re1 {[%clk 0:02:51]}  Be7 {[%clk 0:02:52]} 10. Bd3 {[%clk 0:02:44]}  dxc4 {[%clk 0:02:51]} 11. Bxc4 {[%clk 0:02:43]}  Nd7 {[%clk 0:02:52]} 12. Bd3 {[%clk 0:02:39]}  Nb6 {[%clk 0:02:47]} 13. Qc2 {[%clk 0:02:37]}  Bg6 {[%clk 0:02:42]} 14. Bd2 {[%clk 0:02:11]}  O-O {[%clk 0:02:22]} 15. Rad1 {[%clk 0:01:56]}  Nd5 {[%clk 0:01:55]} 16. a3 {[%clk 0:01:52]}  Rc8 {[%clk 0:01:52]} 17. Ne4 {[%clk 0:01:46]}  Bh5 {[%clk 0:01:50]} 18. Be2 {[%clk 0:01:32]}  Bxf3 {[%clk 0:01:49]} 19. Bxf3 {[%clk 0:01:32]}  Nxd4 {[%clk 0:01:49]} 20. Qd3 {[%clk 0:01:32]}  Nxf3+ {[%clk 0:01:49]} 21. Qxf3 {[%clk 0:01:32]}  Qb6 {[%clk 0:01:30]} 22. Qg3 {[%clk 0:01:23]}  Kh7 {[%clk 0:01:30]} 23. Qd3 {[%clk 0:01:22]}  Kh8 {[%clk 0:01:28]} 24. Qh3 {[%clk 0:01:21]}  Kh7 {[%clk 0:01:24]} 25. Qd3 {[%clk 0:01:10]}  Kg8 {[%clk 0:01:11]} 26. Qg3 {[%clk 0:01:09]}  h5 {[%clk 0:00:33]} 27. Bh6 {[%clk 0:01:00]}  g6 {[%clk 0:00:33]} 28. Bxf8 {[%clk 0:00:55]}  Rxf8 {[%clk 0:00:34]} 29. Rd2 {[%clk 0:00:52]}  a5 {[%clk 0:00:34]} 30. Red1 {[%clk 0:00:51]}  Kg7 {[%clk 0:00:33]} 31. h4 {[%clk 0:00:39]}  a4 {[%clk 0:00:31]} 32. Ng5 {[%clk 0:00:39]}  Ra8 {[%clk 0:00:27]} 33. Kh2 {[%clk 0:00:35]}  Ra5 {[%clk 0:00:25]} 34. Rd3 {[%clk 0:00:27]}  Qxb2 {[%clk 0:00:21]} 35. Rf3 {[%clk 0:00:26]}  Bxg5 {[%clk 0:00:20]} 36. Qxg5 {[%clk 0:00:27]}  Qe2 {[%clk 0:00:06]} 37. Rxd5 {[%clk 0:00:20]} 1-0


[Site "https://www.chess.com"]

[Event "Titled Tuesday Blitz March 01 Late 2022"]
[White "Elissalt Cardenas, Hector"]
[Black "Erdogdu, Mert"]
[WhiteFideId "3500632"]
[BlackFideId "6301495"]
[WhiteElo "2159"]
[BlackElo "2485"]
[Result "0-1"]
[Round "10"]
[TimeControl "180+1"]
[Date "2022.03.02"]
[WhiteClock "0:00:18"]
[BlackClock "0:01:40"]

1. d4 {[%clk 0:03:00]}  e6 {[%clk 0:02:59]} 2. c4 {[%clk 0:02:57]}  d5 {[%clk 0:02:59]} 3. Nc3 {[%clk 0:02:53]}  c5 {[%clk 0:02:59]} 4. cxd5 {[%clk 0:02:48]}  exd5 {[%clk 0:02:58]} 5. Nf3 {[%clk 0:02:44]}  Nc6 {[%clk 0:02:59]} 6. Be3 {[%clk 0:02:37]}  c4 {[%clk 0:02:56]} 7. Bg5 {[%clk 0:02:30]}  Be7 {[%clk 0:02:56]} 8. Bxe7 {[%clk 0:02:26]}  Ngxe7 {[%clk 0:02:57]} 9. g3 {[%clk 0:02:07]}  O-O {[%clk 0:02:54]} 10. Bg2 {[%clk 0:02:06]}  b5 {[%clk 0:02:54]} 11. a3 {[%clk 0:02:00]}  Rb8 {[%clk 0:02:52]} 12. O-O {[%clk 0:01:54]}  a5 {[%clk 0:02:52]} 13. Ne5 {[%clk 0:01:48]}  Be6 {[%clk 0:02:40]} 14. Nxc6 {[%clk 0:01:37]}  Nxc6 {[%clk 0:02:40]} 15. e4 {[%clk 0:01:37]}  Ne7 {[%clk 0:02:35]} 16. Re1 {[%clk 0:01:30]}  dxe4 {[%clk 0:02:27]} 17. Bxe4 {[%clk 0:01:25]}  Nd5 {[%clk 0:02:19]} 18. Nxd5 {[%clk 0:01:04]}  Bxd5 {[%clk 0:02:20]} 19. a4 {[%clk 0:01:03]}  b4 {[%clk 0:02:19]} 20. Bxd5 {[%clk 0:01:02]}  Qxd5 {[%clk 0:02:18]} 21. Re5 {[%clk 0:01:03]}  Qa8 {[%clk 0:02:10]} 22. d5 {[%clk 0:00:50]}  Rfd8 {[%clk 0:02:09]} 23. Qd4 {[%clk 0:00:42]}  Rbc8 {[%clk 0:02:08]} 24. d6 {[%clk 0:00:33]}  c3 {[%clk 0:01:57]} 25. bxc3 {[%clk 0:00:31]}  bxc3 {[%clk 0:01:57]} 26. d7 {[%clk 0:00:25]}  Rc7 {[%clk 0:01:50]} 27. Rae1 {[%clk 0:00:18]}  h6 {[%clk 0:01:40]} 0-1


[Site "https://www.chess.com"]

[Event "Titled Tuesday Blitz March 01 Late 2022"]
[White "Garriga Cazorla, Pere"]
[Black "Mogranzini, Roberto"]
[WhiteFideId "32011601"]
[BlackFideId "810894"]
[WhiteElo "2458"]
[BlackElo "2469"]
[Result "0-1"]
[Round "10"]
[TimeControl "180+1"]
[Date "2022.03.01"]
[WhiteClock "0:01:10"]
[BlackClock "0:01:03"]

1. Nf3 {[%clk 0:02:59]}  c5 {[%clk 0:02:56]} 2. e4 {[%clk 0:02:58]}  Nc6 {[%clk 0:02:56]} 3. d4 {[%clk 0:02:58]}  cxd4 {[%clk 0:02:57]} 4. Nxd4 {[%clk 0:02:58]}  Qb6 {[%clk 0:02:58]} 5. Nb3 {[%clk 0:02:58]}  Nf6 {[%clk 0:02:58]} 6. Nc3 {[%clk 0:02:57]}  e6 {[%clk 0:02:58]} 7. Be3 {[%clk 0:02:57]}  Qc7 {[%clk 0:02:58]} 8. a3 {[%clk 0:02:58]}  a6 {[%clk 0:02:58]} 9. f4 {[%clk 0:02:59]}  d6 {[%clk 0:02:58]} 10. g4 {[%clk 0:02:59]}  h6 {[%clk 0:02:55]} 11. h4 {[%clk 0:02:53]}  h5 {[%clk 0:02:54]} 12. g5 {[%clk 0:02:54]}  Ng4 {[%clk 0:02:55]} 13. Bg1 {[%clk 0:02:54]}  b5 {[%clk 0:02:46]} 14. Be2 {[%clk 0:02:54]}  b4 {[%clk 0:02:39]} 15. axb4 {[%clk 0:02:54]}  Nxb4 {[%clk 0:02:39]} 16. Ra4 {[%clk 0:02:44]}  Rb8 {[%clk 0:02:35]} 17. Qd2 {[%clk 0:02:30]}  Bd7 {[%clk 0:02:19]} 18. Ra1 {[%clk 0:02:27]}  Be7 {[%clk 0:02:12]} 19. Bxg4 {[%clk 0:02:02]}  hxg4 {[%clk 0:02:13]} 20. h5 {[%clk 0:02:03]}  Qc4 {[%clk 0:02:02]} 21. Bd4 {[%clk 0:01:31]}  Rh7 {[%clk 0:01:30]} 22. Na5 {[%clk 0:01:29]}  Qxd4 {[%clk 0:01:20]} 23. Qxd4 {[%clk 0:01:27]}  Nxc2+ {[%clk 0:01:20]} 24. Kd2 {[%clk 0:01:26]}  Nxd4 {[%clk 0:01:21]} 25. Ke3 {[%clk 0:01:16]}  Nc2+ {[%clk 0:01:20]} 26. Kd2 {[%clk 0:01:15]}  Nxa1 {[%clk 0:01:21]} 27. Rxa1 {[%clk 0:01:15]}  Rxh5 {[%clk 0:01:21]} 28. Nc4 {[%clk 0:01:15]}  Bb5 {[%clk 0:01:15]} 29. Ne3 {[%clk 0:01:13]}  g3 {[%clk 0:01:13]} 30. Rg1 {[%clk 0:01:11]}  Rh2+ {[%clk 0:01:12]} 31. Kc1 {[%clk 0:01:11]}  Bd3 {[%clk 0:01:06]} 32. Ned1 {[%clk 0:01:10]}  Rc2+ {[%clk 0:01:03]} 0-1


[Site "https://www.chess.com"]

[Event "Titled Tuesday Blitz March 01 Late 2022"]
[White "Gatterer, Florian"]
[Black "Zhurbinsky, David"]
[WhiteFideId "811688"]
[BlackFideId "2072904"]
[WhiteElo "2218"]
[BlackElo "2497"]
[Result "0-1"]
[Round "10"]
[TimeControl "180+1"]
[Date "2022.03.02"]
[WhiteClock "0:00:14"]
[BlackClock "0:00:43"]

1. Nf3 {[%clk 0:03:00]}  Nf6 {[%clk 0:02:59]} 2. c4 {[%clk 0:02:56]}  e6 {[%clk 0:02:59]} 3. g3 {[%clk 0:02:56]}  d5 {[%clk 0:02:55]} 4. Bg2 {[%clk 0:02:56]}  c5 {[%clk 0:02:56]} 5. cxd5 {[%clk 0:02:54]}  exd5 {[%clk 0:02:57]} 6. d4 {[%clk 0:02:54]}  Nc6 {[%clk 0:02:57]} 7. O-O {[%clk 0:02:54]}  Bg4 {[%clk 0:02:56]} 8. dxc5 {[%clk 0:02:52]}  Bxc5 {[%clk 0:02:57]} 9. Nc3 {[%clk 0:02:52]}  O-O {[%clk 0:02:57]} 10. Bg5 {[%clk 0:02:51]}  Be6 {[%clk 0:02:42]} 11. Rc1 {[%clk 0:02:49]}  Be7 {[%clk 0:02:40]} 12. Nd4 {[%clk 0:02:44]}  Qd7 {[%clk 0:02:34]} 13. Nxe6 {[%clk 0:02:38]}  fxe6 {[%clk 0:02:34]} 14. e3 {[%clk 0:02:28]}  Rac8 {[%clk 0:02:30]} 15. Qa4 {[%clk 0:02:13]}  a6 {[%clk 0:02:23]} 16. Rcd1 {[%clk 0:02:10]}  Qc7 {[%clk 0:02:01]} 17. Bf4 {[%clk 0:01:56]}  Bd6 {[%clk 0:02:02]} 18. Bxd6 {[%clk 0:01:54]}  Qxd6 {[%clk 0:02:02]} 19. e4 {[%clk 0:01:54]}  d4 {[%clk 0:01:59]} 20. e5 {[%clk 0:01:44]}  Qxe5 {[%clk 0:01:52]} 21. Bxc6 {[%clk 0:01:43]}  dxc3 {[%clk 0:01:49]} 22. Bxb7 {[%clk 0:01:41]}  c2 {[%clk 0:01:42]} 23. Rc1 {[%clk 0:01:28]}  Rc7 {[%clk 0:01:42]} 24. Bg2 {[%clk 0:01:20]}  Qxb2 {[%clk 0:01:37]} 25. Qxa6 {[%clk 0:01:11]}  Re8 {[%clk 0:01:11]} 26. a4 {[%clk 0:01:07]}  Ng4 {[%clk 0:01:05]} 27. Qb5 {[%clk 0:00:58]}  Rb8 {[%clk 0:00:55]} 28. Qg5 {[%clk 0:00:39]}  Ne5 {[%clk 0:00:50]} 29. Be4 {[%clk 0:00:20]}  Rc4 {[%clk 0:00:48]} 30. Rxc2 {[%clk 0:00:13]}  Rxc2 {[%clk 0:00:45]} 31. Bxc2 {[%clk 0:00:13]}  Nf3+ {[%clk 0:00:45]} 32. Kg2 {[%clk 0:00:13]}  Nxg5 {[%clk 0:00:46]} 33. h4 {[%clk 0:00:14]}  Qxc2 {[%clk 0:00:43]} 0-1


[Site "https://www.chess.com"]

[Event "Titled Tuesday Blitz March 01 Late 2022"]
[White "Glavina, Pablo"]
[Black "Voit, Daria"]
[WhiteFideId "100234"]
[BlackFideId "4182146"]
[WhiteElo "2369"]
[BlackElo "2323"]
[Result "0-1"]
[Round "10"]
[TimeControl "180+1"]
[Date "2022.03.02"]
[WhiteClock "0:00:01"]
[BlackClock "0:01:16"]

1. e4 {[%clk 0:02:56]}  c6 {[%clk 0:02:59]} 2. d4 {[%clk 0:02:55]}  d5 {[%clk 0:02:59]} 3. Nc3 {[%clk 0:02:54]}  dxe4 {[%clk 0:02:59]} 4. Nxe4 {[%clk 0:02:53]}  Nf6 {[%clk 0:03:00]} 5. Nxf6+ {[%clk 0:02:52]}  exf6 {[%clk 0:03:01]} 6. Nf3 {[%clk 0:02:52]}  Bd6 {[%clk 0:03:01]} 7. Bd3 {[%clk 0:02:52]}  O-O {[%clk 0:03:01]} 8. O-O {[%clk 0:02:52]}  Bg4 {[%clk 0:03:01]} 9. c3 {[%clk 0:02:51]}  Bc7 {[%clk 0:03:00]} 10. h3 {[%clk 0:02:52]}  Bh5 {[%clk 0:02:59]} 11. Be2 {[%clk 0:02:35]}  Qd6 {[%clk 0:02:57]} 12. g3 {[%clk 0:02:33]}  Qd5 {[%clk 0:02:56]} 13. Be3 {[%clk 0:02:09]}  Re8 {[%clk 0:02:54]} 14. Nd2 {[%clk 0:02:02]}  Bg6 {[%clk 0:02:43]} 15. Bf3 {[%clk 0:01:59]}  Qd7 {[%clk 0:02:41]} 16. Bg2 {[%clk 0:01:57]}  Bxg3 {[%clk 0:02:40]} 17. fxg3 {[%clk 0:01:40]}  Rxe3 {[%clk 0:02:39]} 18. Rf3 {[%clk 0:01:29]}  Qe7 {[%clk 0:02:30]} 19. Nc4 {[%clk 0:01:20]}  Rxf3 {[%clk 0:02:26]} 20. Qxf3 {[%clk 0:01:21]}  Nd7 {[%clk 0:02:24]} 21. Kf2 {[%clk 0:01:19]}  Re8 {[%clk 0:02:24]} 22. Ne3 {[%clk 0:01:12]}  Be4 {[%clk 0:02:07]} 23. Qxe4 {[%clk 0:01:08]}  Qxe4 {[%clk 0:02:08]} 24. Bxe4 {[%clk 0:01:09]}  Rxe4 {[%clk 0:02:09]} 25. Nf5 {[%clk 0:01:04]}  Re6 {[%clk 0:02:02]} 26. Re1 {[%clk 0:01:04]}  Kf8 {[%clk 0:01:51]} 27. Rxe6 {[%clk 0:00:59]}  fxe6 {[%clk 0:01:52]} 28. Nd6 {[%clk 0:00:59]}  b5 {[%clk 0:01:52]} 29. Nc8 {[%clk 0:01:00]}  a6 {[%clk 0:01:50]} 30. Na7 {[%clk 0:00:52]}  c5 {[%clk 0:01:48]} 31. Nc6 {[%clk 0:00:48]}  cxd4 {[%clk 0:01:44]} 32. Nxd4 {[%clk 0:00:49]}  Ke7 {[%clk 0:01:43]} 33. a4 {[%clk 0:00:47]}  bxa4 {[%clk 0:01:41]} 34. Ke3 {[%clk 0:00:44]}  Kd6 {[%clk 0:01:40]} 35. Nf3 {[%clk 0:00:14]}  Kd5 {[%clk 0:01:38]} 36. g4 {[%clk 0:00:13]}  Nb6 {[%clk 0:01:25]} 37. Kd2 {[%clk 0:00:12]}  Nc4+ {[%clk 0:01:25]} 38. Kc2 {[%clk 0:00:12]}  e5 {[%clk 0:01:24]} 39. Nh2 {[%clk 0:00:06]}  g6 {[%clk 0:01:21]} 40. Nf3 {[%clk 0:00:04]}  f5 {[%clk 0:01:20]} 41. Ng5 {[%clk 0:00:03]}  h6 {[%clk 0:01:18]} 42. Nh7 {[%clk 0:00:01]}  fxg4 {[%clk 0:01:15]} 43. hxg4 {[%clk 0:00:01]}  Ne3+ {[%clk 0:01:16]} 44. Kd3 {[%clk 0:00:01]}  Nxg4 {[%clk 0:01:16]} 0-1


[Site "https://www.chess.com"]

[Event "Titled Tuesday Blitz March 01 Late 2022"]
[White "Goryachkina, Aleksandra"]
[Black "Ruiz Aguilar, Pablo Alexander"]
[WhiteFideId "4147103"]
[BlackFideId "4401352"]
[WhiteElo "2426"]
[BlackElo "2125"]
[Result "1-0"]
[Round "10"]
[TimeControl "180+1"]
[Date "2022.03.01"]
[WhiteClock "0:01:41"]
[BlackClock "0:01:15"]

1. e4 {[%clk 0:03:00]}  c5 {[%clk 0:02:59]} 2. Nf3 {[%clk 0:03:00]}  e6 {[%clk 0:02:59]} 3. c3 {[%clk 0:02:59]}  d5 {[%clk 0:02:59]} 4. exd5 {[%clk 0:02:59]}  Qxd5 {[%clk 0:02:59]} 5. d4 {[%clk 0:02:59]}  Nf6 {[%clk 0:02:58]} 6. Na3 {[%clk 0:02:58]}  cxd4 {[%clk 0:02:41]} 7. Nb5 {[%clk 0:02:56]}  Qd8 {[%clk 0:02:37]} 8. Nbxd4 {[%clk 0:02:50]}  a6 {[%clk 0:02:35]} 9. Bd3 {[%clk 0:02:50]}  Be7 {[%clk 0:02:35]} 10. O-O {[%clk 0:02:50]}  O-O {[%clk 0:02:35]} 11. Bg5 {[%clk 0:02:42]}  b5 {[%clk 0:02:30]} 12. Re1 {[%clk 0:02:18]}  Bb7 {[%clk 0:02:30]} 13. Ne5 {[%clk 0:02:14]}  Qd5 {[%clk 0:01:51]} 14. Ndf3 {[%clk 0:01:55]}  Rd8 {[%clk 0:01:46]} 15. Qc2 {[%clk 0:01:52]}  h6 {[%clk 0:01:41]} 16. Bxf6 {[%clk 0:01:46]}  Bxf6 {[%clk 0:01:41]} 17. Be4 {[%clk 0:01:42]}  Qxe4 {[%clk 0:01:14]} 18. Rxe4 {[%clk 0:01:42]}  Bxe4 {[%clk 0:01:14]} 19. Qxe4 {[%clk 0:01:42]}  Nd7 {[%clk 0:01:15]} 20. Nxd7 {[%clk 0:01:41]} 1-0


[Site "https://www.chess.com"]

[Event "Titled Tuesday Blitz March 01 Late 2022"]
[White "Gracia Alvarez, Gerardo Antonio"]
[Black "Hoffmann, Asa"]
[WhiteFideId "5109124"]
[BlackFideId "2001470"]
[WhiteElo "2139"]
[BlackElo "2117"]
[Result "0-1"]
[Round "10"]
[TimeControl "180+1"]
[Date "2022.03.02"]
[WhiteClock "0:00:15"]
[BlackClock "0:00:21"]

1. c4 {[%clk 0:03:00]}  Nf6 {[%clk 0:02:55]} 2. Nc3 {[%clk 0:03:01]}  d6 {[%clk 0:02:55]} 3. d4 {[%clk 0:02:57]}  Bf5 {[%clk 0:02:53]} 4. g3 {[%clk 0:02:54]}  c6 {[%clk 0:02:53]} 5. Bg2 {[%clk 0:02:55]}  Nbd7 {[%clk 0:02:53]} 6. e4 {[%clk 0:02:55]}  Bg6 {[%clk 0:02:52]} 7. Nge2 {[%clk 0:02:55]}  e5 {[%clk 0:02:52]} 8. O-O {[%clk 0:02:55]}  Be7 {[%clk 0:02:52]} 9. h3 {[%clk 0:02:53]}  O-O {[%clk 0:02:48]} 10. Re1 {[%clk 0:02:50]}  a5 {[%clk 0:02:47]} 11. Be3 {[%clk 0:02:48]}  exd4 {[%clk 0:02:45]} 12. Nxd4 {[%clk 0:02:46]}  Nc5 {[%clk 0:02:44]} 13. f3 {[%clk 0:02:44]}  Re8 {[%clk 0:02:44]} 14. Qd2 {[%clk 0:02:44]}  Bf8 {[%clk 0:02:43]} 15. Rad1 {[%clk 0:02:45]}  Qc7 {[%clk 0:02:37]} 16. Nde2 {[%clk 0:02:37]}  Rad8 {[%clk 0:02:34]} 17. Nf4 {[%clk 0:02:37]}  Nfd7 {[%clk 0:02:31]} 18. Nxg6 {[%clk 0:02:36]}  hxg6 {[%clk 0:02:31]} 19. b3 {[%clk 0:02:32]}  d5 {[%clk 0:02:30]} 20. cxd5 {[%clk 0:02:22]}  Nf6 {[%clk 0:02:10]} 21. Qf2 {[%clk 0:02:03]}  cxd5 {[%clk 0:02:08]} 22. Nxd5 {[%clk 0:02:01]}  Nxd5 {[%clk 0:02:07]} 23. exd5 {[%clk 0:02:02]}  b6 {[%clk 0:02:01]} 24. f4 {[%clk 0:01:53]}  Bd6 {[%clk 0:01:53]} 25. Bd4 {[%clk 0:01:50]}  Qd7 {[%clk 0:01:48]} 26. Rxe8+ {[%clk 0:01:40]}  Rxe8 {[%clk 0:01:48]} 27. Re1 {[%clk 0:01:40]}  Rxe1+ {[%clk 0:01:43]} 28. Qxe1 {[%clk 0:01:40]}  Qf5 {[%clk 0:01:43]} 29. Qe2 {[%clk 0:01:30]}  g5 {[%clk 0:01:34]} 30. Kh1 {[%clk 0:00:44]}  gxf4 {[%clk 0:01:29]} 31. Bxc5 {[%clk 0:00:43]}  Bxc5 {[%clk 0:01:19]} 32. Qe8+ {[%clk 0:00:42]}  Bf8 {[%clk 0:01:19]} 33. gxf4 {[%clk 0:00:40]}  Qxf4 {[%clk 0:01:17]} 34. Qe2 {[%clk 0:00:37]}  g6 {[%clk 0:01:07]} 35. Qf3 {[%clk 0:00:36]}  Qe5 {[%clk 0:01:00]} 36. Qd1 {[%clk 0:00:27]}  Bd6 {[%clk 0:00:59]} 37. Kg1 {[%clk 0:00:27]}  Qg3 {[%clk 0:00:55]} 38. Qf3 {[%clk 0:00:25]}  Bc5+ {[%clk 0:00:47]} 39. Kf1 {[%clk 0:00:24]}  Qh2 {[%clk 0:00:43]} 40. Ke2 {[%clk 0:00:23]}  Qg1 {[%clk 0:00:42]} 41. h4 {[%clk 0:00:17]}  Qd4 {[%clk 0:00:37]} 42. a4 {[%clk 0:00:15]}  Qxh4 {[%clk 0:00:33]} 43. Qe4 {[%clk 0:00:16]}  Qf2+ {[%clk 0:00:32]} 44. Kd3 {[%clk 0:00:15]}  Kg7 {[%clk 0:00:28]} 45. Kc4 {[%clk 0:00:15]}  Qf6 {[%clk 0:00:26]} 46. Kb5 {[%clk 0:00:14]}  Bd4 {[%clk 0:00:22]} 47. d6 {[%clk 0:00:12]}  Qxd6 {[%clk 0:00:21]} 48. Qd5 {[%clk 0:00:12]}  Qxd5+ {[%clk 0:00:21]} 49. Bxd5 {[%clk 0:00:12]}  f5 {[%clk 0:00:20]} 50. Kc4 {[%clk 0:00:13]}  Bc5 {[%clk 0:00:20]} 51. Kd3 {[%clk 0:00:13]}  Kf6 {[%clk 0:00:21]} 52. Ke2 {[%clk 0:00:14]}  Ke5 {[%clk 0:00:21]} 53. Kf3 {[%clk 0:00:15]}  g5 {[%clk 0:00:21]} 0-1


[Site "https://www.chess.com"]

[Event "Titled Tuesday Blitz March 01 Late 2022"]
[White "Jakubowska, Anna"]
[Black "Donatti, Alvaro"]
[WhiteFideId "1121952"]
[BlackFideId "3000303"]
[WhiteElo "1924"]
[BlackElo "2138"]
[Result "1-0"]
[Round "10"]
[TimeControl "180+1"]
[Date "2022.03.02"]
[WhiteClock "0:02:16"]
[BlackClock "0:02:09"]

1. e4 {[%clk 0:03:00]}  c5 {[%clk 0:02:59]} 2. Nc3 {[%clk 0:03:00]}  Nc6 {[%clk 0:02:58]} 3. g3 {[%clk 0:03:01]}  e6 {[%clk 0:02:54]} 4. Bg2 {[%clk 0:03:02]}  Nf6 {[%clk 0:02:53]} 5. Nge2 {[%clk 0:03:01]}  d5 {[%clk 0:02:53]} 6. exd5 {[%clk 0:03:01]}  exd5 {[%clk 0:02:52]} 7. d4 {[%clk 0:03:01]}  Be6 {[%clk 0:02:49]} 8. O-O {[%clk 0:02:59]}  cxd4 {[%clk 0:02:48]} 9. Nxd4 {[%clk 0:02:59]}  Bc5 {[%clk 0:02:46]} 10. Nb3 {[%clk 0:02:53]}  Bb6 {[%clk 0:02:44]} 11. Bg5 {[%clk 0:02:53]}  O-O {[%clk 0:02:43]} 12. Bxf6 {[%clk 0:02:47]}  Qxf6 {[%clk 0:02:42]} 13. Nxd5 {[%clk 0:02:44]}  Bxd5 {[%clk 0:02:37]} 14. Qxd5 {[%clk 0:02:45]}  Qxb2 {[%clk 0:02:35]} 15. c4 {[%clk 0:02:45]}  Rad8 {[%clk 0:02:31]} 16. Qg5 {[%clk 0:02:42]}  Nd4 {[%clk 0:02:20]} 17. c5 {[%clk 0:02:23]}  Nxb3 {[%clk 0:02:19]} 18. axb3 {[%clk 0:02:23]}  Bc7 {[%clk 0:02:14]} 19. Rab1 {[%clk 0:02:21]}  Qc3 {[%clk 0:02:12]} 20. Bxb7 {[%clk 0:02:17]}  Qxc5 {[%clk 0:02:09]} 21. Qxc5 {[%clk 0:02:16]} 1-0


[Site "https://www.chess.com"]

[Event "Titled Tuesday Blitz March 01 Late 2022"]
[White "Kaplan, Ebru"]
[Black "Desideri, Ricardo Maruchi"]
[WhiteFideId "6315194"]
[BlackFideId "2110440"]
[WhiteElo "1941"]
[BlackElo "1945"]
[Result "1-0"]
[Round "10"]
[TimeControl "180+1"]
[Date "2022.03.02"]
[WhiteClock "0:00:18"]
[BlackClock "0:00:02"]

1. e4 {[%clk 0:03:00]}  c5 {[%clk 0:02:59]} 2. Nf3 {[%clk 0:03:00]}  d6 {[%clk 0:02:59]} 3. Bb5+ {[%clk 0:03:00]}  Nd7 {[%clk 0:02:57]} 4. d4 {[%clk 0:02:58]}  a6 {[%clk 0:02:56]} 5. Bxd7+ {[%clk 0:02:57]}  Bxd7 {[%clk 0:02:56]} 6. O-O {[%clk 0:02:51]}  cxd4 {[%clk 0:02:54]} 7. Qxd4 {[%clk 0:02:50]}  Nf6 {[%clk 0:02:55]} 8. Bg5 {[%clk 0:02:49]}  e5 {[%clk 0:02:46]} 9. Qd3 {[%clk 0:02:49]}  h6 {[%clk 0:02:43]} 10. Bh4 {[%clk 0:02:44]}  g5 {[%clk 0:02:41]} 11. Bg3 {[%clk 0:02:41]}  Bc6 {[%clk 0:02:40]} 12. Nc3 {[%clk 0:02:33]}  Qb6 {[%clk 0:02:34]} 13. b3 {[%clk 0:02:27]}  Rc8 {[%clk 0:02:32]} 14. Rfd1 {[%clk 0:02:21]}  Be7 {[%clk 0:02:29]} 15. Nd2 {[%clk 0:01:32]}  O-O {[%clk 0:02:11]} 16. Nc4 {[%clk 0:01:30]}  Qc7 {[%clk 0:01:50]} 17. h3 {[%clk 0:00:50]}  b5 {[%clk 0:01:48]} 18. Nxd6 {[%clk 0:00:49]}  Rfd8 {[%clk 0:01:46]} 19. Bxe5 {[%clk 0:00:49]}  Nd7 {[%clk 0:01:11]} 20. Bg3 {[%clk 0:00:39]}  Nc5 {[%clk 0:00:39]} 21. Nxc8 {[%clk 0:00:28]}  Nxd3 {[%clk 0:00:38]} 22. Bxc7 {[%clk 0:00:27]}  Rxc8 {[%clk 0:00:37]} 23. Rxd3 {[%clk 0:00:19]}  Rxc7 {[%clk 0:00:36]} 24. Rad1 {[%clk 0:00:19]}  Bf6 {[%clk 0:00:19]} 25. Nd5 {[%clk 0:00:18]}  Bxd5 {[%clk 0:00:14]} 26. exd5 {[%clk 0:00:19]}  Rxc2 {[%clk 0:00:14]} 27. d6 {[%clk 0:00:19]}  Bd8 {[%clk 0:00:13]} 28. d7 {[%clk 0:00:20]}  Rxa2 {[%clk 0:00:13]} 29. Re3 {[%clk 0:00:20]}  Kg7 {[%clk 0:00:07]} 30. Re8 {[%clk 0:00:20]}  Ba5 {[%clk 0:00:05]} 31. d8=Q {[%clk 0:00:19]}  Bxd8 {[%clk 0:00:06]} 32. Rexd8 {[%clk 0:00:20]}  a5 {[%clk 0:00:04]} 33. Rb8 {[%clk 0:00:19]}  b4 {[%clk 0:00:02]} 34. Ra8 {[%clk 0:00:18]} 1-0


[Site "https://www.chess.com"]

[Event "Titled Tuesday Blitz March 01 Late 2022"]
[White "Kostiukov, Alexandr"]
[Black "Stankovic, Ivan G"]
[WhiteFideId "14108100"]
[BlackFideId "902837"]
[WhiteElo "2202"]
[BlackElo "2195"]
[Result "0-1"]
[Round "10"]
[TimeControl "180+1"]
[Date "2022.03.02"]
[WhiteClock "0:00:03"]
[BlackClock "0:00:05"]

1. g3 {[%clk 0:03:00]}  c5 {[%clk 0:02:58]} 2. Bg2 {[%clk 0:03:01]}  Nc6 {[%clk 0:02:57]} 3. c4 {[%clk 0:02:59]}  g6 {[%clk 0:02:56]} 4. Nf3 {[%clk 0:03:00]}  Bg7 {[%clk 0:02:55]} 5. O-O {[%clk 0:02:59]}  e5 {[%clk 0:02:56]} 6. d3 {[%clk 0:02:58]}  Nge7 {[%clk 0:02:55]} 7. Nc3 {[%clk 0:02:52]}  O-O {[%clk 0:02:55]} 8. a3 {[%clk 0:02:52]}  d6 {[%clk 0:02:54]} 9. Rb1 {[%clk 0:02:52]}  a5 {[%clk 0:02:53]} 10. Ne1 {[%clk 0:02:48]}  Be6 {[%clk 0:02:52]} 11. Nd5 {[%clk 0:02:46]}  Rb8 {[%clk 0:02:50]} 12. Nc2 {[%clk 0:02:35]}  b5 {[%clk 0:02:50]} 13. Nxe7+ {[%clk 0:02:33]}  Nxe7 {[%clk 0:02:49]} 14. cxb5 {[%clk 0:02:31]}  Rxb5 {[%clk 0:02:49]} 15. Ne3 {[%clk 0:02:29]}  Bb3 {[%clk 0:02:46]} 16. Qe1 {[%clk 0:02:25]}  d5 {[%clk 0:02:36]} 17. Bd2 {[%clk 0:02:22]}  f5 {[%clk 0:02:28]} 18. Nd1 {[%clk 0:02:20]}  d4 {[%clk 0:02:20]} 19. e3 {[%clk 0:02:07]}  dxe3 {[%clk 0:02:04]} 20. Nxe3 {[%clk 0:01:57]}  Qxd3 {[%clk 0:01:59]} 21. Bxa5 {[%clk 0:01:47]}  e4 {[%clk 0:01:42]} 22. Bc3 {[%clk 0:01:32]}  Bd4 {[%clk 0:01:04]} 23. Qd2 {[%clk 0:01:08]}  Qxd2 {[%clk 0:00:46]} 24. Bxd2 {[%clk 0:01:07]}  Ba2 {[%clk 0:00:46]} 25. Rbd1 {[%clk 0:00:48]}  Rxb2 {[%clk 0:00:38]} 26. Bc1 {[%clk 0:00:34]}  Rb1 {[%clk 0:00:34]} 27. Nc2 {[%clk 0:00:16]}  Nc6 {[%clk 0:00:27]} 28. Nxd4 {[%clk 0:00:15]}  cxd4 {[%clk 0:00:25]} 29. Bh6 {[%clk 0:00:14]}  Rfb8 {[%clk 0:00:24]} 30. g4 {[%clk 0:00:12]}  Rxd1 {[%clk 0:00:17]} 31. Rxd1 {[%clk 0:00:13]}  Kf7 {[%clk 0:00:14]} 32. gxf5 {[%clk 0:00:12]}  gxf5 {[%clk 0:00:14]} 33. Bf4 {[%clk 0:00:12]}  Rb1 {[%clk 0:00:13]} 34. Rxb1 {[%clk 0:00:12]}  Bxb1 {[%clk 0:00:14]} 35. Bf1 {[%clk 0:00:11]}  d3 {[%clk 0:00:14]} 36. f3 {[%clk 0:00:09]}  Bc2 {[%clk 0:00:10]} 37. fxe4 {[%clk 0:00:09]}  fxe4 {[%clk 0:00:10]} 38. Kf2 {[%clk 0:00:09]}  Ke6 {[%clk 0:00:09]} 39. Ke3 {[%clk 0:00:08]}  Kd5 {[%clk 0:00:10]} 40. Bg2 {[%clk 0:00:07]}  Kc4 {[%clk 0:00:06]} 41. Bxe4 {[%clk 0:00:06]}  Nd4 {[%clk 0:00:05]} 42. Kd2 {[%clk 0:00:03]}  Nb3+ {[%clk 0:00:04]} 43. Ke3 {[%clk 0:00:04]}  Nc5 {[%clk 0:00:04]} 44. Bf3 {[%clk 0:00:03]}  Kc3 {[%clk 0:00:04]} 45. Be5+ {[%clk 0:00:03]}  Kc4 {[%clk 0:00:05]} 0-1


[Site "https://www.chess.com"]